Cogmind - Beta 9.2 @@@ ROGUE MODE // 2019.11.21 @ 01:38:04 Player: Finestep Result: Self-destructed Performance ------------- Evolutions (4) 2000 Regions Visited (11) 2200 Robots Destroyed (212) 1060 Value Destroyed (5670) 5670 Prototype IDs (22) 440 Alien Tech Used (0) 0 Bonus (-4068) -4068 TOTAL SCORE: 7302 Bonus ------- High Alert Combat Kills 513 Follower Combat Kills 308 Met Data Miner 300 Friendly Fire -5189 Cogmind --------- Core Integrity 403/850 Matter 183/300 Energy 89/100 System Corruption 2% Temperature Cool (0) Movement Rolling (100) Location -6/Factory Parts ------- > --- POWER (1) -------- (None) > --- PROPULSION (3) --- Compact Wheel > --- UTILITY (8) ------ Advanced Signal Interpreter Advanced Targeting Computer > --- WEAPON (3) ------- (None) > --- INVENTORY (4) ---- Advanced Terrain Scanner Advanced EMP Blaster Plasma Cutter Chainsword Peak State ------------ > --- POWER ------------ Fission Core > --- PROPULSION ------- Improved Medium Treads Armored Huge Wheel > --- UTILITY ---------- Experimental Heat Sink High-capacity Storage Unit High-capacity Storage Unit High-capacity Storage Unit Advanced Signal Interpreter Advanced Targeting Computer Hacking Suite Hacking Suite > --- WEAPON ----------- Antimatter Cannon Antimatter Cannon Long-range Missile Launcher > --- INVENTORY -------- Large Storage Unit Improved Energy Well Advanced Sensor Array Long-range Sensor Array Advanced Terrain Scanner Kinecellerator Weapon Cycler Transmission Jammer Improved Utility Shielding Improved Light Armor Plating Improved Medium Armor Plating 01-MTF's Autohacker Component Analysis Suite System Backup Module Lightning Gun Lightning Gun High-powered Shock Rifle Hypervelocity Gauss Rifle Advanced Assault Cannon Antimatter Cannon Advanced EMP Blaster Proton Missile Launcher Plasma Cutter Chainsword Great Axe [Rating: 67] Favorites ----------- Power Nuclear Core Engine Heavy Ion Engine Power Core Nuclear Core Propulsion Light Treads Treads Light Treads Wheel Armored Huge Wheel Hover Unit Cooled Gravmag System Utility High-capacity Storage Unit Device Long-range Sensor Array Storage High-capacity Storage Unit Processor Advanced Signal Interpreter Hackware Hacking Suite Protection Light Armor Plating Weapon Assault Cannon Energy Gun Precision Beam Rifle Energy Cannon Heavy Particle Cannon Ballistic Gun Assault Rifle Ballistic Cannon Assault Cannon Launcher Long-range Missile Launcher Special Weapon Plasma Cutter Slashing Weapon Katana Build | -11 -10 -10 -9 -8 -8 -7 -7 -7 -7 -6 -6 ------- Run | Scr Mat Min Mat Mat Sto Fac Low Low Dat Pro Fac Slots Evolved 8 | . . . 2 2 . 2 . . . . 2 Power . | . . . . . . . . . . . . Propulsion 1 | . . . 1 . . . . . . . . Utility 6 | . . . 1 1 . 2 . . . . 2 Weapon 1 | . . . . 1 . . . . . . . Parts Attached 207 | 7 12 5 32 4 40 45 5 7 1 7 42 Power 11 | 1 . 1 2 . 2 1 . . . . 4 Engine 6 | 1 . 1 2 . 1 . . . . . 1 Core 5 | . . . . . 1 1 . . . . 3 Reactor . | . . . . . . . . . . . . Propulsion 32 | 3 . 2 10 . 8 5 . 1 . . 3 Treads 23 | 2 . 1 8 . 7 3 . 1 . . 1 Leg . | . . . . . . . . . . . . Wheel 8 | 1 . 1 2 . . 2 . . . . 2 Hover 1 | . . . . . 1 . . . . . . Flight . | . . . . . . . . . . . . Utility 67 | 1 3 . 2 1 12 21 5 3 1 5 13 Device 33 | . . . . . 5 12 3 2 . 4 7 Storage 8 | 1 3 . 2 . 2 . . . . . . Processor 3 | . . . . . . 3 . . . . . Hackware 4 | . . . . . . 1 1 . . . 2 Protection 19 | . . . . 1 5 5 1 1 1 1 4 Artifact . | . . . . . . . . . . . . Weapon 97 | 2 9 2 18 3 18 18 . 3 . 2 22 Energy Gun 11 | . . . 1 . 6 2 . . . . 2 Energy Cannon 6 | . . . . . 2 2 . 1 . . 1 Ballistic Gun 36 | 2 6 1 12 1 2 7 . . . 1 4 Ballistic Cannon 18 | . . . . 1 3 3 . 1 . . 10 Launcher 15 | . . 1 4 1 2 2 . 1 . 1 3 Special Weapon 5 | . 3 . . . 1 . . . . . 1 Impact Weapon . | . . . . . . . . . . . . Slashing Weapon 6 | . . . 1 . 2 2 . . . . 1 Piercing Weapon . | . . . . . . . . . . . . Special Melee Weapon . | . . . . . . . . . . . . Unidentified Prototypes 11 | . . . 3 1 7 . . . . . . Parts Lost 29 | . . 2 5 . . 4 . . . . 18 Power 5 | . . 1 1 . . . . . . . 3 Propulsion 8 | . . 1 2 . . 1 . . . . 4 Utility 7 | . . . . . . 3 . . . . 4 Weapon 9 | . . . 2 . . . . . . . 7 Highest Loss Streak 9 | . . 2 2 . . 1 . . . . 9 Average Slot Usage (%) 94 | . 95 99 97 97 99 91 92 91 92 92 88 Engine 4 | . 14 13 10 9 5 . . . . . 1 Core 4 | . . . . . 3 7 7 7 7 7 4 Treads 14 | . 14 21 26 27 26 8 7 6 7 7 5 Wheel 5 | . 14 6 5 . . 5 7 7 7 7 4 Device 4 | . . . . . 2 4 6 6 7 6 10 Storage 25 | . 24 28 32 27 27 23 23 23 23 23 19 Processor 7 | . . . . . . 12 15 15 15 15 13 Protection 2 | . . . . 7 6 2 . . . . 4 Energy Gun 1 | . . . . . 4 . . . . . . Energy Cannon 3 | . . . . . 4 3 7 6 7 7 2 Ballistic Gun 10 | . 27 28 21 18 5 4 7 7 7 6 4 Ballistic Cannon 8 | . . . . 7 10 14 7 6 7 7 10 Naked Turns . | . . . . . . . . . . . . Heaviest Build 141 | 9 39 41 92 100 125 124 125 120 125 125 141 Greatest Support 69 | 40 10 40 69 69 69 63 28 28 28 28 32 Greatest Overweight (x) 9 | . 3 4 9 1 2 4 4 4 4 4 4 Average Overweight (x) 3 | . 2 2 3 1 1 3 4 4 4 4 3 Largest Inventory Capacity 28 | 6 16 16 26 26 28 28 28 28 28 28 28 Average Capacity 25 | 5 13 16 25 26 27 28 28 28 28 28 27 Most Carried 28 | 6 16 16 26 26 28 28 28 28 28 28 28 Average Carried 24 | 5 11 15 24 25 27 27 27 27 28 28 25 Final Capacity 28 | 6 16 16 26 26 28 28 28 28 28 28 4 Final Carried 28 | 6 16 15 25 26 28 28 28 28 28 28 4 Class Distribution -------------------- 38% | Hauler-Skirmisher 20% | Hauler-Mutant 15% | Hauler-Gunner 13% | Mutant 11% | Hauler-Tank Dominant Class ---------------- Mutant | -10/Materials Mutant | -10/Mines Hauler-Mutant | -9/Materials Hauler-Tank | -8/Materials Hauler-Tank | -8/Storage Hauler-Skirmisher | -7/Factory Hauler-Skirmisher | -7/Lower Caves Hauler-Skirmisher | -7/Lower Caves Hauler-Skirmisher | -7/Data Miner Hauler-Skirmisher | -6/Proximity Caves Hauler-Skirmisher | -6/Factory Resources | -11 -10 -10 -9 -8 -8 -7 -7 -7 -7 -6 -6 ----------- Run | Scr Mat Min Mat Mat Sto Fac Low Low Dat Pro Fac Matter Collected 5842 | 366 206 122 1094 217 882 1103 245 37 . 322 1248 Remotely . | . . . . . . . . . . . . Salvage Created 7517 | 253 273 93 1576 213 1209 1971 76 3 . 144 1706 Parts 417 | 20 34 5 100 13 69 92 5 4 . 6 69 Haulers Intercepted 12 | . 2 . 4 1 1 3 . . . . 1 Recyclers Shooed 12 | . . . 7 . 1 . . . . . 4 Parts Field Recycled . | . . . . . . . . . . . . Retrieved Matter . | . . . . . . . . . . . . Parts Self-Destructed 14 | . . . . . . . 4 . . 10 . Prevented 9 | . . . . . . . 8 . . 1 . Kills | -11 -10 -10 -9 -8 -8 -7 -7 -7 -7 -6 -6 ------- Run | Scr Mat Min Mat Mat Sto Fac Low Low Dat Pro Fac Combat Hostiles Destroyed 126 | . 6 6 25 2 24 33 2 2 . 2 24 Guns 52 | . 6 5 16 1 8 9 2 2 . 1 2 Cannons 47 | . . . . 1 11 16 . . . . 19 AOE 25 | . . 1 9 . 5 6 . . . 1 3 Classes Destroyed 19 | 3 4 2 4 . 1 1 1 1 . 1 1 Worker 27 | 1 1 . 5 1 4 7 . . . . 8 Builder 11 | . 1 1 3 . 2 2 . . . . 2 Tunneler 7 | 7 . . . . . . . . . . . Hauler 12 | . 2 . 4 1 1 3 . . . . 1 Recycler 15 | 1 . . 3 1 1 5 . . . . 4 Minesweeper 1 | . . . . . . . . . . 1 . Operator 2 | . . . 1 . . . . . . . 1 Watcher 10 | . 2 . 4 . 1 3 . . . . . Swarmer 26 | . 6 1 6 . 4 7 . . . . 2 Grunt 60 | . . . 14 . 11 19 1 . . . 15 Brawler 1 | . . . . . . . 1 . . . . Duelist 5 | . . . 2 . . . . . . 1 2 Protector 1 | . . . . . . . . . . . 1 Sentry 15 | . . . 3 2 8 1 . . . . 1 Demolisher 1 | . . 1 . . . . . . . . . Hunter 6 | . . . . . 1 3 . . . 1 1 Programmer 5 | . . . . . . 3 . . . . 2 Thief 2 | . . . . . . . . 2 . . . Assembled 4 | . . 4 . . . . . . . . . Best Kill Streak 13 | 2 3 4 12 2 6 10 2 1 . 1 13 Combat Bots Only 9 | . 3 4 7 1 5 9 2 1 . 1 8 Max Kills in Single Turn 5 | 1 1 1 4 1 4 2 1 1 . 1 5 Gunslinging . | . . . . . . . . . . . . Exploded 4 | . . 1 3 . 4 2 . . . 1 2 Melee . | . . . . . . . . . . . . Uniques/NPCs Destroyed 1 | . . . . . 1 . . . . . . 01-MTF (-8/Storage) Combat | -11 -10 -10 -9 -8 -8 -7 -7 -7 -7 -6 -6 -------- Run | Scr Mat Min Mat Mat Sto Fac Low Low Dat Pro Fac Damage Taken 8560 | . 264 346 954 142 1157 2112 . 85 . 171 3329 Core 1040 | . 62 21 105 26 75 304 . . . . 447 Absorbed by Shields . | . . . . . . . . . . . . Core Remaining (%) 75 | 100 . 66 73 . 81 . . . . 56 . Volleys Fired 618 | 48 46 14 145 9 132 109 5 13 . 12 85 Largest 3 | 2 2 2 2 3 3 3 3 3 . 3 3 Hottest 162 | 40 100 40 40 84 162 156 147 147 . 147 147 Shots Fired 1317 | 96 85 27 282 27 241 293 12 21 . 26 207 Gun 739 | 96 78 26 276 18 85 78 5 9 . 7 61 Cannon 464 | . . . . 9 81 209 7 8 . 14 136 Launcher 30 | . . 1 6 . 2 6 . 4 . 5 6 Special 84 | . 7 . . . 73 . . . . . 4 Kinetic 1064 | 96 78 26 276 27 110 230 10 14 . 14 183 Thermal 193 | . 7 . . . 128 37 2 3 . 7 9 Explosive 10 | . . 1 3 . 1 . . 4 . . 1 Electromagnetic 50 | . . . 3 . 2 26 . . . 5 14 Robot Hit Streak 28 | 7 10 11 14 13 28 16 12 5 . 9 13 Robot Miss Streak 5 | 3 5 1 3 1 3 5 1 2 . 1 5 Penetration Max 1 | . . . . . . 1 . . . . 1 Secondary Targets 3 | . . 1 . . . 2 . . . . . Max Gunslinging Chain 1 | . . 1 . . . 1 . . . . . Shots Hit Robots 810 | 53 44 22 174 20 165 171 5 10 . 15 131 Core Hits 378 | 19 21 13 72 6 69 75 5 4 . 7 87 Critical Hits 30 | . . . 2 . 10 4 . . . . 14 Critical Kills 12 | . . . . . 4 4 . . . . 4 Critical Parts Destroyed 14 | . . . 2 . 2 . . . . . 10 Melee Attacks 15 | . . . 1 . 7 4 . . . . 3 Impact . | . . . . . . . . . . . . Slashing 15 | . . . 1 . 7 4 . . . . 3 Piercing . | . . . . . . . . . . . . Sneak Attacks 7 | . . . . . 4 . . . . . 3 Combat Hostiles . | . . . . . . . . . . . . Follow-up Attacks . | . . . . . . . . . . . . Damage Inflicted 18086 | 393 393 334 2735 344 3317 4528 197 288 . 450 5107 Guns 6719 | 393 369 252 2208 166 910 1385 104 86 . 116 730 Cannons 7512 | . . . . 178 1445 2445 93 80 . 189 3082 Explosions 2871 | . . 82 527 . 332 698 . 122 . 145 965 Melee 663 | . . . . . 354 . . . . . 309 Ramming . | . . . . . . . . . . . . Kinetic 12480 | 393 369 252 2208 344 1662 3101 172 141 . 205 3633 Thermal 1966 | . 24 . 67 . 969 646 25 25 . 100 110 Explosive 908 | . . 82 297 . 233 . . 122 . . 174 Electromagnetic 2069 | . . . 163 . 99 781 . . . 145 881 Impact . | . . . . . . . . . . . . Slashing 663 | . . . . . 354 . . . . . 309 Piercing . | . . . . . . . . . . . . Highest Corruption 2 | . . . . . . 2 2 2 2 2 2 Average Corruption 1 | . . . . . . 1 2 2 2 2 1 Corruption Purged . | . . . . . . . . . . . . Effects 35 | . . . . . . 15 5 4 1 6 4 Message Errors 11 | . . . . . . 5 2 2 1 . 1 Heat Flow Errors 5 | . . . . . . 2 . 1 . 2 . Energy Discharges 8 | . . . . . . 3 3 . . 1 1 Data Loss (minor) 4 | . . . . . . 1 . . . 2 1 Targeting Errors 7 | . . . . . . 4 . 1 . 1 1 Overload Shots . | . . . . . . . . . . . . Overflow Damage 339 | . 4 17 55 . 27 84 . 18 . . 134 Projectiles 164 | . 4 . . . 14 63 . 11 . . 72 Explosions 162 | . . 17 55 . . 21 . 7 . . 62 Melee 13 | . . . . . 13 . . . . . . Knockbacks 63 | . . . . . 14 15 . . . 2 32 Impact . | . . . . . . . . . . . . Kinetic 59 | . . . . . 12 15 . . . 2 30 Secondary 4 | . . . . . 2 . . . . . 2 Self-Inflicted Damage 117 | . . 22 . . . 27 . 9 . . 59 Shots 4 | . . 1 . . . 1 . 1 . . 1 Rammed . | . . . . . . . . . . . . Targets Rammed . | . . . . . . . . . . . . Kicked . | . . . . . . . . . . . . Crushed . | . . . . . . . . . . . . Highest Temperature 378 | . 80 13 . 77 360 378 132 171 . 313 376 Average Temperature 88 | . 32 10 . 28 83 95 72 84 . 103 104 Received Heat Transfer 2615 | . . 80 348 45 405 519 . . . 81 1137 Effects 7 | . . . . . 1 2 . . . . 4 Shutdowns 2 | . . . . . . 1 . . . . 1 Energy Bleed 2 | . . . . . 1 1 . . . . . Interference 2 | . . . . . . . . . . . 2 Short Circuit 1 | . . . . . . . . . . . 1 Siege Activations . | . . . . . . . . . . . . Robots Corrupted 2 | . . . . . . 2 . . . . . Combat Hostiles 2 | . . . . . . 2 . . . . . Parts Fried 5 | . . . 1 . . 3 . . . 1 . Impact Corruptions . | . . . . . . . . . . . . Robots Melted . | . . . . . . . . . . . . Combat Hostiles . | . . . . . . . . . . . . Parts Melted 1 | . . . 1 . . . . . . . . Heat Transferred 5286 | . 50 . 100 . 3663 1016 37 37 . 148 235 Parts Sabotaged . | . . . . . . . . . . . . Parts Stolen 2 | . . . . . . . . 2 . . . Parts Stripped . | . . . . . . . . . . . . Power Chain Reactions 4 | . . . 1 . . 2 . . . . 1 Missiles Intercepted . | . . . . . . . . . . . . Alert | -11 -10 -10 -9 -8 -8 -7 -7 -7 -7 -6 -6 ------- Run | Scr Mat Min Mat Mat Sto Fac Low Low Dat Pro Fac Peak Influence 833 | 45 205 64 281 137 338 833 . . . . 720 Average Influence 243 | 18 55 29 101 43 204 459 . . . . 317 Maximum Alert Level 3 | . 1 . 1 . 1 3 . . . . 3 Low Security (%) 56 | 100 95 100 81 100 47 20 . . . . 55 Level 1 21 | . 4 . 18 . 52 19 . . . . 2 Level 2 12 | . . . . . . 28 . . . . 35 Level 3 9 | . . . . . . 31 . . . . 5 Level 4 . | . . . . . . . . . . . . Level 5 . | . . . . . . . . . . . . High Security . | . . . . . . . . . . . . Max Security . | . . . . . . . . . . . . Squads Dispatched 29 | . . . 4 . 3 12 . . . . 10 Investigation 9 | . . . 1 . 1 6 . . . . 1 Extermination 5 | . . . . . . 3 . . . . 2 Reinforcement 10 | . . . 3 . 2 2 . . . . 3 Assault 2 | . . . . . . 1 . . . . 1 Garrison 3 | . . . . . . . . . . . 3 Intercept . | . . . . . . . . . . . . Construction Impeded 5 | . . . 2 . . 1 . . . . 2 Haulers Reinforced 1 | . . . . . . 1 . . . . . Stealth | -11 -10 -10 -9 -8 -8 -7 -7 -7 -7 -6 -6 --------- Run | Scr Mat Min Mat Mat Sto Fac Low Low Dat Pro Fac Distress Signals 14 | . 2 1 3 . 2 4 . . . . 2 Communications Jammed . | . . . . . . . . . . . . Distress Signals . | . . . . . . . . . . . . Times Spotted 223 | . 10 14 38 4 41 62 2 3 . 4 45 Peak Tracking Total 10 | . 3 7 6 3 6 10 1 2 . 3 9 Tactical Retreats 23 | . 1 1 1 1 3 11 1 . . 1 3 Traps | -11 -10 -10 -9 -8 -8 -7 -7 -7 -7 -6 -6 ------- Run | Scr Mat Min Mat Mat Sto Fac Low Low Dat Pro Fac Traps Triggered 9 | . 2 . 1 . . 2 . . . . 4 Indirectly 4 | . . . . . . . . . . . 4 Trap Hack Attempts . | . . . . . . . . . . . . Triggered . | . . . . . . . . . . . . Disarmed 2 | . . . . . 2 . . . . . . Reprogrammed . | . . . . . . . . . . . . Reused . | . . . . . . . . . . . . Traps Extracted . | . . . . . . . . . . . . Installed . | . . . . . . . . . . . . Triggered 2 | . . . . . . . 1 . . 1 . Machines | -11 -10 -10 -9 -8 -8 -7 -7 -7 -7 -6 -6 ---------- Run | Scr Mat Min Mat Mat Sto Fac Low Low Dat Pro Fac Machines Disabled 25 | . . 1 1 1 3 . . . . . 19 Max in Single Turn 7 | . . 1 1 1 1 . . . . . 7 Garrison Access 2 | . . . . . 1 1 . . . . . Machines Sabotaged . | . . . . . . . . . . . . Garrisons Compromised . | . . . . . . . . . . . . Overloaded Fab Kills . | . . . . . . . . . . . . Fab Network Shutdowns . | . . . . . . . . . . . . Hacking | -11 -10 -10 -9 -8 -8 -7 -7 -7 -7 -6 -6 --------- Run | Scr Mat Min Mat Mat Sto Fac Low Low Dat Pro Fac Machines Accessed 44 | . 3 . 6 . 14 10 3 1 4 . 3 Terminals 24 | . 3 . 6 . 11 2 1 . . . 1 Fabricators 4 | . . . . . . 2 . . . . 2 Repair Stations 2 | . . . . . 1 1 . . . . . Recycling Units 3 | . . . . . 1 2 . . . . . Scanalyzers 2 | . . . . . . 2 . . . . . Garrison Access 2 | . . . . . 1 1 . . . . . Total Hacks 169 | . 14 . 22 . 49 31 17 1 26 . 9 Successful 112 | . 6 . 12 . 30 16 14 1 26 . 7 Failed 56 | . 8 . 10 . 19 15 2 . . . 2 Catastrophic 2 | . . . . . 1 . 1 . . . . Database Lockouts 1 | . . . . . . . 1 . . . . Manual 79 | . 11 . 18 . 33 7 7 . . . 3 Terminals 95 | . 14 . 22 . 43 6 8 . . . 2 Fabricators 16 | . . . . . . 9 . . . . 7 Repair Stations 5 | . . . . . 2 3 . . . . . Recycling Units 8 | . . . . . 3 5 . . . . . Scanalyzers 6 | . . . . . . 6 . . . . . Garrison Access 3 | . . . . . 1 2 . . . . . Terminal Hacks 75 | . 6 . 8 . 17 2 14 1 26 . 1 Record 20 | . . . . . . . 9 . 11 . . Part Schematic 6 | . . . . . 1 . 1 . 4 . . Robot Schematic 13 | . 3 . 1 . 1 . . . 8 . . Robot Analysis 1 | . . . 1 . . . . . . . . Prototype ID Bank 5 | . . . 1 . 1 . . . 3 . . Open Door 4 | . . . . . 2 . 1 1 . . . Branch Access Points 3 | . . . 1 . . 1 . . . . 1 Terminal Index 1 | . . . . . 1 . . . . . . Alert Level 1 | . . . . . 1 . . . . . . Unreport Threat 5 | . 1 . 3 . 1 . . . . . . Locate Traps 5 | . 1 . 1 . 3 . . . . . . Disarm Traps 2 | . . . . . 2 . . . . . . Recall Investigation 2 | . . . . . . . 2 . . . . Recall Reinforcements 1 | . . . . . 1 . . . . . . Hauler Manifests 1 | . . . . . 1 . . . . . . Zone Layout 5 | . 1 . . . 2 1 1 . . . . Fabricator Hacks 8 | . . . . . . 4 . . . . 4 Load Schematic 5 | . . . . . . 3 . . . . 2 Build 3 | . . . . . . 1 . . . . 2 Repair Station Hacks 3 | . . . . . 2 1 . . . . . Scan Component 2 | . . . . . 1 1 . . . . . Repair 1 | . . . . . 1 . . . . . . Recycling Unit Hacks 4 | . . . . . 1 3 . . . . . Process 1 | . . . . . . 1 . . . . . Retrieve Matter 1 | . . . . . . 1 . . . . . Retrieve Components 2 | . . . . . 1 1 . . . . . Scanalyzer 4 | . . . . . . 4 . . . . . Insert Component 2 | . . . . . . 2 . . . . . Analyze 2 | . . . . . . 2 . . . . . Garrison Access Hacks 1 | . . . . . 1 . . . . . . Seal Access 1 | . . . . . 1 . . . . . . Unauthorized Hacks 46 | . 4 . 11 . 21 5 . . . . 5 Terminals 13 | . . . 4 . 8 . . . . . 1 Track 4 | . . . 1 . 3 . . . . . . Assimilate 1 | . . . . . 1 . . . . . . Botnet 8 | . . . 3 . 4 . . . . . 1 Fabricators 1 | . . . . . . . . . . . 1 Siphon 1 | . . . . . . . . . . . 1 Repair Stations . | . . . . . . . . . . . . Recycling Units 2 | . . . . . 1 1 . . . . . Tunnel 2 | . . . . . 1 1 . . . . . Scanalyzers . | . . . . . . . . . . . . Garrison Access 1 | . . . . . . 1 . . . . . Jam 1 | . . . . . . 1 . . . . . Data Cores Recovered . | . . . . . . . . . . . . Used . | . . . . . . . . . . . . Hacking Detections 32 | . 3 . 6 . 11 8 1 . . . 3 Full Trace Events 4 | . . . . . . 3 . . . . 1 Feedback Events . | . . . . . . . . . . . . Feedback Blocked . | . . . . . . . . . . . . Robot Schematics Acquired 13 | . 3 . 1 . 1 . . . 8 . . Robots Built 3 | . . . . . . 2 . . . . 1 Matter 333 | . . . . . . 219 . . . . 114 Time 139 | . . . . . . 58 . . . . 81 Total Robot Build Rating 7 | . . . . . . 6 . . . . 1 Part Schematics Acquired 7 | . . . . . 1 1 1 . 4 . . Parts Built 1 | . . . . . . . . . . . 1 Matter 285 | . . . . . . . . . . . 285 Time 76 | . . . . . . . . . . . 76 Total Part Build Rating 5 | . . . . . . . . . . . 5 Parts Repaired 1 | . . . . . 1 . . . . . . Time 60 | . . . . . 60 . . . . . . Parts Recycled . | . . . . . . . . . . . . Recycled Matter 329 | . . . . . . 329 . . . . . Retrieved Matter 423 | . . . . . . 423 . . . . . Retrieved Components 11 | . . . . . 9 2 . . . . . Parts Scanalyzed 2 | . . . . . . 2 . . . . . Part Schematics Acquired 1 | . . . . . . 1 . . . . . Parts Damaged . | . . . . . . . . . . . . Bothacking | -11 -10 -10 -9 -8 -8 -7 -7 -7 -7 -6 -6 ------------ Run | Scr Mat Min Mat Mat Sto Fac Low Low Dat Pro Fac Used RIF Installer . | . . . . . . . . . . . . Robots Hacked . | . . . . . . . . . . . . Non-combat . | . . . . . . . . . . . . Combat . | . . . . . . . . . . . . Robot Hacks Applied . | . . . . . . . . . . . . Relay Couplers Released . | . . . . . . . . . . . . Robots Rewired . | . . . . . . . . . . . . Allies Hacked . | . . . . . . . . . . . . Hacks Repelled . | . . . . . . . . . . . . Allies | -11 -10 -10 -9 -8 -8 -7 -7 -7 -7 -6 -6 -------- Run | Scr Mat Min Mat Mat Sto Fac Low Low Dat Pro Fac Total Allies 7 | . . . . . 3 2 . . . 1 1 Largest Group 3 | . . . . . 3 3 . . . 1 1 Highest-Rated Group 125 | . . . . . 125 51 . . . 94 94 Highest-Rated Ally 99 | . . . . . 99 21 . . . 94 94 Total Orders 4 | . . . . . 2 . . . . . 2 GOTO 3 | . . . . . 1 . . . . . 2 FOLLOW 1 | . . . . . 1 . . . . . . Ally Attacks 45 | . . . . . 4 9 . . . 18 14 Total Damage 1211 | . . . . . 136 185 . . . 522 368 Kills 10 | . . . . . 2 1 . . . 4 3 Allies Corrupted . | . . . . . . . . . . . . Allies Melted . | . . . . . . . . . . . . Intel | -11 -10 -10 -9 -8 -8 -7 -7 -7 -7 -6 -6 ------- Run | Scr Mat Min Mat Mat Sto Fac Low Low Dat Pro Fac Robot Analysis Total 1 | . . . 1 . . . . . . . . Derelict Logs Recovered 3 | . . 1 . . . . . 1 . 1 . Drone Launches . | . . . . . . . . . . . . Drone Recoveries . | . . . . . . . . . . . . Exploration | -11 -10 -10 -9 -8 -8 -7 -7 -7 -7 -6 -6 ------------- Run | Scr Mat Min Mat Mat Sto Fac Low Low Dat Pro Fac Turns Passed 11260 | 263 581 636 1508 185 2028 2548 1034 700 111 486 1180 Spaces Moved 5701 | 151 410 392 568 80 726 1435 573 461 79 308 518 Core 16 | 6 . . . . . . . . . . 10 Treads 1545 | 2 . 165 331 80 726 153 . . . . 88 Legs . | . . . . . . . . . . . . Wheels 4140 | 143 410 227 237 . . 1282 573 461 79 308 420 Hover . | . . . . . . . . . . . . Flight . | . . . . . . . . . . . . Fastest Speed 50 | 50 80 120 120 180 180 140 140 140 140 140 50 Average Speed 148 | 79 101 145 173 180 180 146 140 140 140 140 156 Slowest Speed 240 | 160 110 180 240 180 200 200 140 140 140 140 240 Overloaded Moves . | . . . . . . . . . . . . Propulsion Burnouts . | . . . . . . . . . . . . Robots Hopped . | . . . . . . . . . . . . Cave-ins Triggered . | . . . . . . . . . . . . Exploration Rate (%) 49 | 5 59 76 64 11 88 35 68 56 68 52 16 Regions Visited 11 Branch Regions 6 Pre-discovered Areas 4 | . . 1 . . 1 1 . . 1 . . Known Exits Taken 5 | . . . . . . 1 1 1 1 1 . Unknown Exits Taken 6 | 1 1 1 1 1 1 . . . . . . Scrap Searched 4 | . . . . . . . 2 1 . 1 . Spaces Dug 64 | . 5 . 15 . 18 3 . 15 . . 8 Terrain Destroyed 167 | . 5 6 34 . 24 11 1 57 . . 29 Melee 7 | . . . 1 . 3 3 . . . . . Projectile 37 | . 5 . . . 6 3 1 1 . . 21 AOE 123 | . . 6 33 . 15 5 . 56 . . 8 Actions | -11 -10 -10 -9 -8 -8 -7 -7 -7 -7 -6 -6 --------- Run | Scr Mat Min Mat Mat Sto Fac Low Low Dat Pro Fac Total 7291 | 214 493 430 811 103 1156 1654 793 494 79 339 725 Wait 548 | . 5 18 15 1 216 17 209 7 . 11 49 Move 5690 | 150 409 391 567 79 725 1434 572 460 78 307 518 Hop . | . . . . . . . . . . . . Pick Up 101 | 7 14 1 27 5 9 21 1 4 . 1 11 Fast Attach 39 | 6 1 1 7 1 15 4 . 1 . . 3 Attach 50 | 1 2 2 7 3 4 13 1 1 . . 16 Detach 7 | 1 . . . 2 2 2 . . . . . Swap 118 | . 9 2 18 . 21 28 4 5 1 7 23 Drop 105 | 1 7 1 24 3 25 22 1 3 . 1 17 Fire 618 | 48 46 14 145 9 132 109 5 13 . 12 85 Melee 15 | . . . 1 . 7 4 . . . . 3 Ram . | . . . . . . . . . . . . Kick . | . . . . . . . . . . . . Crush . | . . . . . . . . . . . . Escape Stasis . | . . . . . . . . . . . . Rewire . | . . . . . . . . . . . . Trap . | . . . . . . . . . . . . Miscellaneous . | . . . . . . . . . . . . Route ------- -11/Scrapyard -10/Materials (discovered 2 exits: *Mat / [*Min]) -10/Mines (discovered 2 exits: *Mat x2) -9/Materials (discovered 2 exits: [*Mat] / *Min) -8/Materials -8/Storage -7/Factory (discovered 5 exits: *Fac x3 / *Low x2) -7/Lower Caves -7/Lower Caves -7/Data Miner -6/Proximity Caves -6/Factory (discovered 4 exits: Low x2 / Ext x2) History --------- Turn | Location | Event 26 | -11/Scrapyard | Discovered new exit (range 16) 264 | -11/Scrapyard | Entered Materials 311 | -10/Materials | Build established: Mutant 404 | -10/Materials | Discovered new exit (range 11) 621 | -10/Materials | Discovered new exit (range 12) 845 | -10/Materials | Entered Mines 846 | -10/Mines | Assembled infested the area 851 | -10/Mines | Assisted by a Guerilla fighting off Assembled 1272 | -10/Mines | Discovered new exit (range 10) 1464 | -10/Mines | Discovered new exit (range 6) 1481 | -10/Mines | Entered Materials 1481 | -9/Materials | Evolved 2 slots: Propulsion x1, Utility x1 1693 | -9/Materials | Destroyed 7 combat bots 1812 | -9/Materials | Build established: Hauler-Mutant 2097 | -9/Materials | Discovered new exit (range 9) 2856 | -9/Materials | Identified exit to Mines 2944 | -9/Materials | Discovered new exit (range 15) 2989 | -9/Materials | Entered another Materials area 2989 | -8/Materials | Evolved 2 slots: Utility x1, Weapon x1 3002 | -8/Materials | Discovered new exit (range 16) 3174 | -8/Materials | Entered Storage 3581 | -8/Storage | Discovered new exit (range 16) 3702 | -8/Storage | Repaired Prc. Beam Rifle 4006 | -8/Storage | Build established: Hauler-Tank 4267 | -8/Storage | Met 01-MTF 4810 | -8/Storage | Destroyed 01-MTF 4816 | -8/Storage | Found Prototype Device 4816 | -8/Storage | Identified 01-MTF's Autohacker 4836 | -8/Storage | Found 01-MTF's Shockpuncher 4902 | -8/Storage | Build established: Hauler-Mutant 5202 | -8/Storage | Entered Factory 5202 | -7/Factory | Accompanied by 1 ally 5202 | -7/Factory | Evolved 2 slots: Utility x2 5273 | -7/Factory | Fabricated H-55 Commando? 5753 | -7/Factory | Destroyed 9 combat bots 5907 | -7/Factory | Build established: Hauler-Skirmisher 6346 | -7/Factory | Discovered new exit (range 5) 6352 | -7/Factory | Identified exit to Factory 6740 | -7/Factory | Identified exit to Lower Caves 6963 | -7/Factory | Discovered exit to Factory (range 15) 7602 | -7/Factory | First assault squad dispatched 7615 | -7/Factory | Discovered exit to Factory (range 14) 7750 | -7/Factory | Entered Lower Caves 7865 | -7/Lower Caves | Learned Extension trap positions 7865 | -7/Lower Caves | Learned Extension terminal intel 8080 | -7/Lower Caves | Encountered a Warlord checkpoint 8578 | -7/Lower Caves | Central database locked down 8669 | -7/Lower Caves | Discovered new exit (range 9) 8738 | -7/Lower Caves | Identified exit to Lower Caves 8784 | -7/Lower Caves | Entered another Lower Caves area 9002 | -7/Lower Caves | Learned Factory emergency access door positions 9079 | -7/Lower Caves | Assault Cannon stolen by Master Thief 9086 | -7/Lower Caves | Imp. Treads stolen by Master Thief 9381 | -7/Lower Caves | Discovered new exit (range 14) 9398 | -7/Lower Caves | Identified exit to Data Miner 9484 | -7/Lower Caves | Entered Data Miner 9484 | -7/Data Miner | Discovered new exit (range 7) 9512 | -7/Data Miner | Met Data Miner 9539 | -7/Data Miner | Learned location of Section 7 (-2) 9539 | -7/Data Miner | Acquired the access code to Warlord's prototype stash 9559 | -7/Data Miner | Received God Mode back door access code from Data Miner 9589 | -7/Data Miner | Identified exit to Proximity Caves 9595 | -7/Data Miner | Entered Proximity Caves 9867 | -6/Proximity Caves | Escorted by Enhanced Grunt 10081 | -6/Proximity Caves | Entered Factory 10081 | -6/Factory | Accompanied by 1 ally 10081 | -6/Factory | Evolved 2 slots: Utility x2 10445 | -6/Factory | Garrison activated, responded to threat 10706 | -6/Factory | Identified exit to Lower Caves 10706 | -6/Factory | Identified exit to Extension 10791 | -6/Factory | Fabricated O-16 Technician? 10908 | -6/Factory | Lost 3 parts (1p1n1w) 10912 | -6/Factory | Destroyed 8 combat bots 11007 | -6/Factory | Incoming investigation squad redirected 11067 | -6/Factory | Fabricated Lgt. Regenerative Plating (x1) 11131 | -6/Factory | First assault squad dispatched 11154 | -6/Factory | Build established: Hauler-Gunner 11176 | -6/Factory | Incoming assault squad redirected 11224 | -6/Factory | Lost 9 parts (2p1n2u4w) 11258 | -6/Factory | Core integrity fell below 50% 11261 | -6/Factory | Self-destructed Last Messages --------------- 11250_ HV Slug penetrates K-01 Serf. 11250_ K-01 Serf suffers critical hit. 11250_ K-01 Serf destroyed. 11250_ HV Slug penetrates G-50 Soldier. 11250_ G-50 Soldier suffers critical hit. 11250_ Destroyed Lgt. Angular Momentum Engine. 11252_ K-01 Serf collects debris. 11253_ R-10 Processor collects Lrn. Sensor Array. 11253_ Hyp. Gauss Rifle destroyed. 11253_ U-05 Engineer lays Concrete. 11254_ Acquired Com. Wheel. 11256_ R-10 Processor collects Imp. Light Armor Plating. 11256_ K-01 Serf collects debris. 11256_ Acquired Com. Wheel. 11259_ R-10 Processor collects Adv. Sensor Array. 11259_ K-01 Serf collects debris. 11259_ Com. Wheel destroyed. 11260_ K-01 Serf collects debris. 11260_ Weapon Cycler destroyed. 11260_ U-05 Engineer lays Concrete. Map ----- +----------------------------------------------------+ | ?????????????????????????????????????????????????? | | ?????????????????????????????????????????????????? | | ?????????????????????????????????????????????????? | | ?????????????????????????????????????????????????? | | ?????????????????????????????????????????????????# | | ????????????????????????????????????????????????## | | ????????????????????????????????????????????????# | | ??????????????????????? ?????????? ??????????# | | ??????????????????????? #???????# ??????????# | | ??????????????????????? #???????# ????? #??## | | ??????????????????????# #??????########+##### | | ??????????????????????# #??????# # | | ??????????????????????# g +??????# = # | | ??????????????? ??????# gg #??????# # | | ??????????#####+###???# #??????# + | | ????????? ??# #??????# # | | ????????? ?##k #??????# # | | ?????????? ### #??????# # | | ?????????? #??????# # | | ???????????? % u #??????# ! # | | ?????????????? ""%% k #??????# ! # | | ????????????? """ !! #??????# ! ==% = # | | ?????????????! """ *% #??????# * %% ! # | | ????????????# """ ##############+####### | | ????????????# /! u | | ????????????# @![] ^ % | | ????????????# " " [!!!! % | | ????????????# "T [u! k | | ????????????# """ ] R % | | ????????????#? = | | ????????????# =%! | | ????????????##" ""#### ! | | ?????????????#"R""???# l | | ?????????????#"?"????# | | ?????????????????????# | | ?????????????????????# g = | | ?????????????????????# ! | | ?????????????????????# gg =###### | | ?????????????????????# # ## | | ?????????????????????# ### ###### | | ?????????????????????## ###############?# #????# | | ????????????????????????????????????????# #????? | | ????????????????????????????????????????# #????? | | ????????????????????????????????????????# #????? | | ????????????????????????????????????????# #????? | | ????????????????????????????????????????# #????? | | ????????????????????????????????????????# #????? | | ????????????????????????????????????????+ #????? | | ??????????+???????????????????????+?????# #????? | | ????????????????????????????????????????# ?????? | +----------------------------------------------------+ Best States ------------- Heat Dissipation 63 Coolant Potential 50 Energy Generation 18 Energy Capacity 310 Matter Stores 300 Matter Capacity 300 Sight Range 16 Robot Scan Range 20 Terrain Scan Range 20 Terrain Scan Density 10 Armor Coverage 225 Utility Shielding 66 Weapon Shielding 66 Weapon Cycling 15 Evasion (%) 44 Targeting Accuracy 8 Recoil Reduction 3 Kinecelleration 30 Offensive Hacking 20 Item Schematics ----------------- Adv. Terrain Scanner | -8/Storage | Hacked Cld. Gravmag System | -7/Factory | Scanalyzed Lrn. Terrain Scanner | -7/Lower Caves | Hacked Combat Drone Bay | -7/Data Miner | Free Lgt. Regenerative Plating | -7/Data Miner | Free Exp. Flexi-carbon Leg | -7/Data Miner | Free Mni. Smartbomb Launcher | -7/Data Miner | Free Robot Schematics ------------------ O-16 Technician | -10/Materials | Hacked M-13 Machinist | -10/Materials | Hacked S-10 Pest | -10/Materials | Hacked I-25 Savior | -9/Materials | Hacked H-55 Commando | -8/Storage | Hacked S-27 Virus | -7/Data Miner | Free G-50 Soldier | -7/Data Miner | Free G-67 Veteran | -7/Data Miner | Free L-41 Fighter | -7/Data Miner | Free X-72 Disruptor | -7/Data Miner | Free H-66 Slayer | -7/Data Miner | Free P-70 Sage | -7/Data Miner | Free I-36 Angel | -7/Data Miner | Free Fabricated ------------ H-55 Commando | x2 | -7/Factory O-16 Technician | x1 | -6/Factory Lgt. Regenerative Plating | x1 | -6/Factory Alien Tech Used ----------------- None Achievements -------------- None Challenges ------------ None Game ------ Seed CloakingTeslaCorpse Manual? 0 Play Time 01:20:25 Cumulative 303.0 hours Start 2019.11.21 @ 00:13:17 End 2019.11.21 @ 01:38:04 Sessions 1 Manual Loads 0 Difficulty Rogue Special Mode None Game No. 229 Rogue 229 Adventurer 0 Explorer 0 Win Type - Total 3 Types 3/0/0/0/0/0/0 Lore% 74 Gallery% 81 Achievement% 59 Wizard Run 0 Options --------- ASCII 0 Keyboard 0 Movement Mouse Keybinds 1 Fullscreen 2 Font 24/Smallcaps Map View 76x50 Tactical HUD 1 Map Filters NONE Filters NONE Steam 1 RUN: e1065b81-b56f-4dc2-9f6d-8bf9f29bf870